fUSD/lending_fUSD_20250112
["ID","MTS","AMOUNT","RATE_DAILY","PERIOD"]
[348629888,1736689840449,-500.0,9.974e-05,2]
[348629890,1736689840459,-584.18,9.974e-05,2]
[348629892,1736689840468,-668.88,9.974e-05,2]
[348629894,1736689840478,-500.0,9.974e-05,2]
[348629896,1736689840490,-500.0,9.974e-05,2]
[348629898,1736689840500,-500.0,9.974e-05,2]
[348629900,1736689840510,-859.88,9.974e-05,2]
[348629902,1736689840521,-500.0,9.974e-05,2]
[348629905,1736689840531,-500.0,9.974e-05,2]
[348629907,1736689840541,-500.0,9.974e-05,2]
[348629909,1736689840551,-500.0,9.974e-05,2]
[348629911,1736689840560,-500.0,9.974e-05,2]
[348629913,1736689840570,-500.880498,9.974e-05,2]
[348629915,1736689840580,-500.0,9.974e-05,2]
[348629917,1736689840589,-500.0,9.974e-05,2]
[348629919,1736689840599,-500.0,9.974e-05,2]
[348629921,1736689840608,-500.0,9.974e-05,2]
[348629923,1736689840618,-500.0,9.974e-05,2]
[348629925,1736689840628,-500.0,9.974e-05,2]
[348629927,1736689840637,-500.0,9.974e-05,2]
[348629929,1736689840646,-500.0,9.974e-05,2]
[348629931,1736689840657,-500.0,9.974e-05,2]
[348629933,1736689840666,-506.95641962,9.974e-05,2]
[348629935,1736689840676,-500.0,9.974e-05,2]
[348629953,1736689840834,-637.3,9.974e-05,2]
[348629955,1736689840851,-893.15,9.974e-05,2]
[348629958,1736689840864,-500.0,9.974e-05,2]
[348629960,1736689840873,-500.0,9.974e-05,2]
[348629962,1736689840882,-365.59145259,9.974e-05,2]
[348629964,1736689840892,-581.9,9.974e-05,2]
[348629966,1736689840902,-500.0,9.974e-05,2]
[348629968,1736689840911,-500.0,9.974e-05,2]
[348629970,1736689840922,-500.0,9.974e-05,2]
[348629972,1736689840933,-500.93861245,9.974e-05,2]
[348629974,1736689840944,-696.06,9.974e-05,2]
[348629976,1736689840953,-500.0,9.974e-05,2]
[348629978,1736689840962,-500.0,9.974e-05,2]
[348629980,1736689840971,-500.0,9.974e-05,2]
[348629982,1736689840980,-723.93,9.974e-05,2]
[348629984,1736689840989,-500.0,9.974e-05,2]
[348629986,1736689840998,-500.0,9.974e-05,2]
[348629988,1736689841006,-500.0,9.974e-05,2]
[348629990,1736689841015,-544.53,9.974e-05,2]
[348629992,1736689841024,-500.0,9.974e-05,2]
[348629994,1736689841033,-500.0,9.974e-05,2]
[348629996,1736689841043,-500.0,9.974e-05,2]
[348629998,1736689841051,-500.0,9.974e-05,2]
[348630000,1736689841060,-500.0,9.974e-05,2]
[348630002,1736689841069,-504.6499641,9.974e-05,2]
[348630004,1736689841079,-718.11,9.974e-05,2]
[348630006,1736689841088,-501.08101758,9.974e-05,2]
[348630008,1736689841097,-500.0,9.974e-05,2]
[348630010,1736689841106,-500.0,9.974e-05,2]
[348630012,1736689841115,-642.83,9.974e-05,2]
[348630014,1736689841123,-500.0,9.974e-05,2]
[348630016,1736689841132,-504.28734458,9.974e-05,2]
[348630018,1736689841141,-606.41,9.974e-05,2]
[348630020,1736689841150,-500.0,9.974e-05,2]
[348630022,1736689841160,-268.28155592,9.974e-05,2]
[348630024,1736689841169,-500.0,9.974e-05,2]
[348630026,1736689841178,-500.0,9.974e-05,2]
[348630028,1736689841187,-570.25,9.974e-05,2]
[348630030,1736689841196,-567.17,9.974e-05,2]
[348630032,1736689841205,-500.0,9.974e-05,2]
[348630034,1736689841215,-500.0,9.974e-05,2]
[348630036,1736689841223,-500.0,9.974e-05,2]
[348630038,1736689841232,-500.0,9.974e-05,2]
[348630040,1736689841241,-503.4477864,9.974e-05,2]
[348630042,1736689841251,-690.5,9.974e-05,2]
[348630044,1736689841260,-503.2784802,9.974e-05,2]
[348630046,1736689841269,-500.0,9.974e-05,2]
[348630048,1736689841278,-500.0,9.974e-05,2]
[348630050,1736689841287,-535.98,9.974e-05,2]
[348630052,1736689841297,-500.0,9.974e-05,2]
[348630054,1736689841307,-500.0,9.974e-05,2]
[348630056,1736689841315,-500.0,9.974e-05,2]
[348630058,1736689841324,-500.0,9.974e-05,2]
[348630060,1736689841333,-500.0,9.974e-05,2]
[348630062,1736689841342,-500.0,9.974e-05,2]
[348630064,1736689841351,-500.0,9.974e-05,2]
[348630066,1736689841360,-500.0,9.974e-05,2]
[348630068,1736689841369,-274.35192669,9.974e-05,2]
[348630070,1736689841378,-500.0,9.974e-05,2]
[348630072,1736689841387,-500.0,9.974e-05,2]
[348630074,1736689841397,-501.85375896,9.974e-05,2]
[348630076,1736689841406,-500.0,9.974e-05,2]
[348630078,1736689841415,-500.0,9.974e-05,2]
[348630080,1736689841424,-500.0,9.974e-05,2]
[348630081,1736689841434,-500.0,9.974e-05,2]
[348630083,1736689841443,-500.0,9.974e-05,2]
[348630085,1736689841452,-500.0,9.974e-05,2]
[348630087,1736689841461,-704.37,9.974e-05,2]
[348630089,1736689841470,-588.71,9.974e-05,2]
[348630091,1736689841479,-500.0,9.974e-05,2]
[348630093,1736689841489,-500.0,9.974e-05,2]
[348630095,1736689841498,-543.94,9.974e-05,2]
[348630097,1736689841507,-500.0,9.974e-05,2]
[348630099,1736689841516,-550.29,9.974e-05,2]
[348630101,1736689841525,-500.0,9.974e-05,2]
[348630103,1736689841535,-500.0,9.974e-05,2]
[348630105,1736689841545,-500.86353367,9.974e-05,2]
[348630107,1736689841554,-500.0,9.974e-05,2]
[348630109,1736689841564,-500.0,9.974e-05,2]
[348630111,1736689841572,-500.0,9.974e-05,2]
[348630113,1736689841582,-500.0,9.974e-05,2]
[348630115,1736689841591,-500.0,9.974e-05,2]
[348630117,1736689841600,-638.87,9.974e-05,2]
[348630119,1736689841609,-500.0,9.974e-05,2]
[348630122,1736689841619,-500.0,9.974e-05,2]
[348630124,1736689841628,-500.0,9.974e-05,2]
[348630126,1736689841638,-778.51,9.974e-05,2]
[348630128,1736689841647,-500.0,9.974e-05,2]
[348630130,1736689841657,-500.0,9.974e-05,2]
[348630132,1736689841667,-500.0,9.974e-05,2]
[348630134,1736689841676,-500.0,9.974e-05,2]
[348630136,1736689841685,-500.0,9.974e-05,2]
[348630138,1736689841694,-868.73,9.974e-05,2]
[348630140,1736689841703,-500.0,9.974e-05,2]
[348630142,1736689841712,-500.0,9.974e-05,2]
[348630144,1736689841721,-500.0,9.974e-05,2]
[348630146,1736689841730,-500.0,9.974e-05,2]
[348630148,1736689841740,-503.65964742,9.974e-05,2]
[348630150,1736689841749,-500.0,9.974e-05,2]
[348630152,1736689841759,-500.0,9.974e-05,2]
[348630153,1736689841772,-500.0,9.974e-05,2]
[348630156,1736689841781,-516.21963015,9.974e-05,2]
[348630157,1736689841791,-500.0,9.974e-05,2]
[348630160,1736689841800,-500.0,9.974e-05,2]
[348630161,1736689841812,-500.0,9.974e-05,2]
[348630163,1736689841821,-500.0,9.974e-05,2]
[348630165,1736689841830,-500.0,9.974e-05,2]
[348630167,1736689841839,-500.8688644,9.974e-05,2]
[348630169,1736689841848,-500.0,9.974e-05,2]
[348630171,1736689841859,-511.91,9.974e-05,2]
[348630174,1736689841869,-500.0,9.974e-05,2]
[348630176,1736689841879,-500.0,9.974e-05,2]
[348630177,1736689841888,-1442.72,9.974e-05,2]
[348630179,1736689841897,-506.60455663,9.974e-05,2]
[348630181,1736689841907,-500.0,9.974e-05,2]
[348630183,1736689841916,-500.0,9.974e-05,2]
[348630185,1736689841925,-500.0,9.974e-05,2]
[348630188,1736689841935,-563.23,9.974e-05,2]
[348630190,1736689841944,-500.0,9.974e-05,2]
[348630191,1736689841953,-500.0,9.974e-05,2]
[348630193,1736689841963,-500.0,9.974e-05,2]
[348630195,1736689841974,-482.62071834,9.974e-05,2]
[348630197,1736689841983,-513.81098143,9.974e-05,2]
[348630199,1736689841992,-580.29,9.974e-05,2]
[348630201,1736689842001,-163.08521394,9.974e-05,2]
[348630203,1736689842010,-995.97,9.974e-05,2]
[348630205,1736689842020,-500.0,9.974e-05,2]
[348630207,1736689842029,-1716.07,9.974e-05,2]
[348630209,1736689842038,-500.0,9.974e-05,2]
[348630211,1736689842047,-500.0,9.974e-05,2]
[348630213,1736689842056,-897.64,9.974e-05,2]
[348630216,1736689842069,-500.0,9.974e-05,2]
[348630217,1736689842078,-425.03194397,9.974e-05,2]
[348630219,1736689842087,-500.0,9.974e-05,2]
[348630221,1736689842096,-500.0,9.974e-05,2]
[348630223,1736689842105,-500.0,9.974e-05,2]
[348630224,1736689842114,-500.0,9.974e-05,2]
[348630225,1736689842125,-507.59500827,9.974e-05,2]
[348630226,1736689842134,-500.0,9.974e-05,2]
[348630227,1736689842143,-1003.39,9.974e-05,2]
[348630228,1736689842152,-500.0,9.974e-05,2]
[348630229,1736689842161,-500.0,9.974e-05,2]
[348630230,1736689842170,-958.6,9.974e-05,2]
[348630231,1736689842179,-1222.24,9.974e-05,2]
[348630232,1736689842187,-500.0,9.974e-05,2]
[348630233,1736689842196,-500.0,9.974e-05,2]
[348630234,1736689842205,-500.0,9.974e-05,2]
[348630235,1736689842215,-500.0,9.974e-05,2]
[348630236,1736689842224,-633.06,9.974e-05,2]
[348630237,1736689842232,-500.0,9.974e-05,2]
[348630238,1736689842242,-500.0,9.974e-05,2]
[348630239,1736689842251,-500.0,9.974e-05,2]
[348630240,1736689842259,-500.0,9.974e-05,2]
[348630241,1736689842268,-500.0,9.974e-05,2]
[348630242,1736689842277,-500.0,9.974e-05,2]
[348630243,1736689842286,-500.0,9.974e-05,2]
[348630244,1736689842296,-500.0,9.974e-05,2]
[348630246,1736689842305,-548.75,9.974e-05,2]
[348630248,1736689842314,-500.0,9.974e-05,2]
[348630250,1736689842323,-500.0,9.974e-05,2]
[348630252,1736689842332,-500.0,9.974e-05,2]
[348630254,1736689842341,-500.0,9.974e-05,2]
[348630256,1736689842350,-500.0,9.974e-05,2]
[348630258,1736689842359,-500.0,9.974e-05,2]
[348630260,1736689842368,-500.0,9.974e-05,2]
[348630262,1736689842377,-2756.81,9.974e-05,2]
[348630264,1736689842386,-500.0,9.974e-05,2]
[348630266,1736689842395,-500.0,9.974e-05,2]
[348630268,1736689842404,-520.67,9.974e-05,2]
[348630269,1736689842413,-500.0,9.974e-05,2]
[348630271,1736689842422,-1536.41,9.974e-05,2]
[348630273,1736689842431,-1502.32,9.974e-05,2]
[348630275,1736689842440,-500.0,9.974e-05,2]
[348630277,1736689842449,-671.06,9.974e-05,2]
[348630279,1736689842459,-500.0,9.974e-05,2]
[348630281,1736689842468,-500.0,9.974e-05,2]
[348630283,1736689842477,-500.0,9.974e-05,2]
[348630286,1736689842489,-518.61,9.974e-05,2]
[348630288,1736689842498,-501.00752932,9.974e-05,2]
[348630290,1736689842508,-500.0,9.974e-05,2]
[348630291,1736689842517,-500.0,9.974e-05,2]
[348630293,1736689842526,-2675.26,9.974e-05,2]
[348630294,1736689842535,-3652.29,9.974e-05,2]
[348630295,1736689842546,-500.0,9.974e-05,2]
[348630297,1736689842555,-500.0,9.974e-05,2]
[348630298,1736689842565,-500.0,9.974e-05,2]
[348630300,1736689842574,-715.87,9.974e-05,2]
[348630301,1736689842583,-500.0,9.974e-05,2]
[348630302,1736689842592,-3269.84,9.974e-05,2]
[348630303,1736689842601,-500.0,9.974e-05,2]
[348630304,1736689842611,-500.0,9.974e-05,2]
[348630305,1736689842620,-500.0,9.974e-05,2]
[348630306,1736689842630,-500.0,9.974e-05,2]
[348630307,1736689842640,-500.0,9.974e-05,2]
[348630308,1736689842649,-500.0,9.974e-05,2]
[348630309,1736689842659,-500.0,9.974e-05,2]
[348630310,1736689842668,-589.54,9.974e-05,2]
[348630311,1736689842678,-500.0,9.974e-05,2]
[348630313,1736689842688,-519.5,9.974e-05,2]
[348630315,1736689842697,-501.67215453,9.974e-05,2]
[348630317,1736689842707,-40110.61976963,9.974e-05,2]
[348630319,1736689842717,-18894.19917601,9.974e-05,2]
[348630321,1736689842726,-200.0,9.975e-05,2]
[348630323,1736689842735,-105945.14669629,9.975e-05,2]
[348630326,1736689842744,-623.24,9.975e-05,2]
[348630331,1736689842754,-1180.82,9.975e-05,2]
[348630336,1736689842767,-868.82,9.975e-05,2]
[348630339,1736689842776,-772.37,9.975e-05,2]
[348630342,1736689842785,-1271.39,9.975e-05,2]
[348630345,1736689842795,-500.0,9.975e-05,2]
[348630348,1736689842805,-801.2,9.975e-05,2]
[348630351,1736689842814,-601.57,9.975e-05,2]
[348630354,1736689842823,-1523.18,9.975e-05,2]
[348630356,1736689842832,-568.52,9.975e-05,2]
[348630358,1736689842843,-859.03,9.975e-05,2]
[348630360,1736689842853,-500.0,9.975e-05,2]
[348630362,1736689842862,-1609.45,9.975e-05,2]
[348630364,1736689842871,-500.0,9.975e-05,2]
[348630366,1736689842881,-573.93,9.975e-05,2]
[348630368,1736689842890,-2490.99,9.975e-05,2]
[348630370,1736689842900,-500.0,9.975e-05,2]
[348630372,1736689842909,-1051.34,9.975e-05,2]
[348630374,1736689842918,-625.82,9.975e-05,2]
[348630376,1736689842927,-993.7,9.975e-05,2]
[348630378,1736689842937,-6808.31,9.975e-05,2]
[348630380,1736689842946,-500.0,9.975e-05,2]
[348630382,1736689842955,-1051.54,9.975e-05,2]
[348630384,1736689842964,-500.0,9.975e-05,2]
[348630386,1736689842973,-561.89,9.975e-05,2]
[348630388,1736689842983,-500.0,9.975e-05,2]
[348630390,1736689842993,-500.0,9.975e-05,2]
[348630392,1736689843002,-798.81,9.975e-05,2]
[348630394,1736689843011,-500.0,9.975e-05,2]
[348630395,1736689843020,-1185.87,9.975e-05,2]
[348630396,1736689843029,-500.0,9.975e-05,2]
[348630397,1736689843039,-500.0,9.975e-05,2]
[348630398,1736689843048,-826.25,9.975e-05,2]
[348630399,1736689843058,-6924.34,9.975e-05,2]
[348630400,1736689843067,-1471.87,9.975e-05,2]
[348630401,1736689843076,-853.76,9.975e-05,2]
[348630402,1736689843086,-2023.67,9.975e-05,2]
[348630403,1736689843096,-2526.7,9.975e-05,2]
[348630404,1736689843105,-500.0,9.975e-05,2]
[348630405,1736689843115,-1446.26,9.975e-05,2]
[348630406,1736689843124,-1013.54,9.975e-05,2]
[348630407,1736689843133,-500.0,9.975e-05,2]
[348630408,1736689843142,-3769.76,9.975e-05,2]
[348630410,1736689843151,-1301.88,9.975e-05,2]
[348630411,1736689843160,-1148.53,9.975e-05,2]
[348630413,1736689843170,-1755.0,9.975e-05,2]
[348630414,1736689843178,-995.17,9.975e-05,2]
[348630415,1736689843189,-1799.15,9.975e-05,2]
[348630416,1736689843198,-500.0,9.975e-05,2]
[348630417,1736689843207,-2657.03,9.975e-05,2]
[348630418,1736689843217,-506.41337132,9.975e-05,2]
[348630419,1736689843226,-1000.0,9.975e-05,2]
[348630420,1736689843235,-1544.83,9.975e-05,2]
[348630421,1736689843244,-18894.19917601,9.975e-05,2]
[348630422,1736689843254,-500.0,9.976e-05,2]
[348630423,1736689843263,-395.40844161,9.976e-05,2]
[348630424,1736689843273,-618639.23041936,9.977e-05,2]
[348630425,1736689843283,-366.90281155,9.978e-05,2]
[348630426,1736689843292,-366.90281155,9.978e-05,2]
[348630427,1736689843302,-40110.61976963,9.979e-05,2]
[348630428,1736689843311,-200.0,9.979e-05,2]
[348630429,1736689843320,-38428.61493903,9.98e-05,2]
[348630430,1736689843329,-38428.61493903,9.981e-05,2]
[348630431,1736689843339,-200.0,9.982e-05,2]
[348630432,1736689843348,-1160.28520056,9.983e-05,3]
[348630433,1736689843357,-500.0,9.983e-05,2]
[348630434,1736689843366,-618639.23041936,9.984e-05,2]
[348630435,1736689843375,-18894.19917601,9.984e-05,2]
[348630436,1736689843384,-25881.8685175,9.985e-05,2]
[348630437,1736689843407,-12555.74030853,9.985e-05,2]
[348630438,1736689843429,-573.45,9.985e-05,2]
[348630439,1736689843607,-695.72,9.985e-05,2]
[348630440,1736689843619,-1785.41147267,9.985e-05,2]
[348630441,1736689843629,-4019.09127962,9.985e-05,2]
[348630442,1736689843640,-315.6,9.985e-05,2]
[348630443,1736689843675,-648.38324154,9.985e-05,2]
[348630444,1736689843685,-7605.460225,9.985e-05,2]
[348630445,1736689843707,-553.06899972,9.985e-05,2]
[348630471,1736689845697,-500.0,9.97e-05,2]
[348630472,1736689845707,-1443.15,9.97e-05,2]
[348630473,1736689845717,-500.0,9.974e-05,2]
[348630474,1736689845727,-2276.42656358,9.985e-05,2]
[348630475,1736689846104,-835.00161753,9.969e-05,2]
[348630476,1736689846117,-418.32967253,9.969e-05,2]
[348630477,1736689846130,-470.734905,9.969e-05,2]
[348630478,1736689846143,-1293.28380494,9.969e-05,2]
[348630479,1736689846152,-619.78469506,9.985e-05,2]
[348630480,1736689846184,-317.44792807,9.969e-05,2]
[348630481,1736689846193,-41594.69646532,9.985e-05,2]
[348630482,1736689846205,-181097.89020716,9.985e-05,2]
[348630483,1736689846215,-86908.95954517,9.985e-05,2]
[348630484,1736689846227,-97627.2963047,9.985e-05,2]
[348630486,1736690531941,1004.89,8.219e-05,2]
[348630489,1736690961679,180.22625203,0.00023,120]
[348630504,1736691032068,-342.86,8.838e-05,2]
[348630505,1736691032078,-2908.36842254,8.854e-05,2]
[348630506,1736691032104,-1246.38,8.854e-05,2]
[348630507,1736691032116,-1792.327,8.854e-05,2]
[348630508,1736691032128,-1227.1353198,8.854e-05,2]
[348630509,1736691032140,-534.06006056,8.854e-05,2]
[348630510,1736691032173,-645.9191971,8.854e-05,2]
[348630511,1736691032183,-1000.0,8.855e-05,2]
[348630512,1736691032192,-250.0,8.856e-05,2]
[348630513,1736691032202,-300.0,8.862e-05,2]
[348630514,1736691032211,-1982.31,8.864e-05,2]
[348630515,1736691032221,-311.66,8.979e-05,2]
[348630516,1736691032230,-150.0,8.999e-05,2]
[348630517,1736691032240,-500.0,9e-05,2]
[348630518,1736691032250,-500.0,9e-05,2]
[348630519,1736691032260,-500.0,9e-05,2]
[348630520,1736691032269,-500.0,9e-05,2]
[348630521,1736691032278,-500.0,9e-05,2]
[348630522,1736691032287,-500.0,9e-05,2]
[348630523,1736691032296,-500.0,9e-05,2]
[348630524,1736691032306,-500.0,9e-05,2]
[348630525,1736691032315,-396.45,9e-05,2]
[348630526,1736691032325,-500.0,9e-05,2]
[348630527,1736691032334,-500.0,9e-05,2]
[348630528,1736691032343,-500.0,9e-05,2]
[348630529,1736691032353,-500.0,9e-05,2]
[348630530,1736691032363,-500.0,9e-05,2]
[348630531,1736691032372,-500.0,9e-05,2]
[348630532,1736691032381,-500.0,9e-05,2]
[348630533,1736691032390,-500.0,9e-05,2]
[348630534,1736691032399,-500.0,9e-05,2]
[348630535,1736691032408,-500.0,9e-05,2]
[348630536,1736691032417,-500.0,9e-05,2]
[348630537,1736691032426,-500.0,9e-05,2]
[348630538,1736691032435,-500.0,9e-05,2]
[348630539,1736691032444,-500.0,9e-05,2]
[348630540,1736691032454,-610.87,9e-05,2]
[348630541,1736691032463,-500.0,9.151e-05,2]
[348630542,1736691032472,-9968.71757809,9.6e-05,2]
[348630543,1736691032484,-12271.77557424,9.6e-05,2]
[348630544,1736691032494,-542.87,9.61e-05,2]
[348630545,1736691032503,-150.0,9.735e-05,2]
[348630546,1736691032514,-150.0,9.735e-05,2]
[348630547,1736691032524,-150.0,9.738e-05,2]
[348630548,1736691032534,-150.0,9.745e-05,2]
[348630549,1736691032544,-420.0,9.748e-05,2]
[348630550,1736691032558,-150.0,9.754e-05,2]
[348630551,1736691032567,-150.0,9.754e-05,2]
[348630552,1736691032576,-150.0,9.759e-05,2]
[348630553,1736691032585,-150.0,9.762e-05,2]
[348630554,1736691032595,-1500.0,9.765e-05,2]
[348630556,1736691032605,-150.0,9.766e-05,2]
[348630557,1736691032613,-150.0,9.767e-05,2]
[348630558,1736691032623,-150.0,9.767e-05,2]
[348630559,1736691032631,-150.0,9.775e-05,2]
[348630560,1736691032640,-150.0,9.776e-05,2]
[348630561,1736691032649,-409.0,9.781e-05,2]
[348630562,1736691032658,-150.0,9.787e-05,2]
[348630563,1736691032667,-150.0,9.79e-05,2]
[348630564,1736691032676,-150.0,9.791e-05,2]
[348630565,1736691032685,-150.0,9.793e-05,2]
[348630567,1736691032694,-150.0,9.793e-05,2]
[348630569,1736691032704,-150.0,9.803e-05,2]
[348630571,1736691032713,-150.0,9.806e-05,2]
[348630573,1736691032723,-150.0,9.807e-05,2]
[348630575,1736691032732,-150.0,9.807e-05,2]
[348630577,1736691032741,-150.0,9.808e-05,2]
[348630579,1736691032750,-1259.0,9.82e-05,2]
[348630581,1736691032759,-3977.0,9.82e-05,2]
[348630583,1736691032767,-537.0,9.82e-05,2]
[348630585,1736691032776,-3896.0,9.82e-05,2]
[348630587,1736691032786,-3982.137,9.82e-05,2]
[348630589,1736691032795,-150.0,9.82e-05,2]
[348630590,1736691032804,-1172.0,9.82e-05,2]
[348630591,1736691032813,-150.0,9.82e-05,2]
[348630593,1736691032822,-1260.07527377,9.837e-05,2]
[348630594,1736691032831,-150.0,9.846e-05,2]
[348630595,1736691032840,-163.17478164,9.854e-05,2]
[348630596,1736691032849,-150.0,9.856e-05,2]
[348630597,1736691032858,-150.0,9.856e-05,2]
[348630598,1736691032867,-150.0,9.858e-05,2]
[348630599,1736691032876,-1500.0,9.867e-05,2]
[348630600,1736691032885,-150.0,9.871e-05,2]
[348630601,1736691032895,-150.0,9.884e-05,2]
[348630602,1736691032904,-150.0,9.89e-05,2]
[348630603,1736691032913,-150.0,9.89e-05,2]
[348630604,1736691032923,-150.0,9.899e-05,2]
[348630605,1736691032933,-150.0,9.91e-05,2]
[348630607,1736691032942,-150.0,9.911e-05,2]
[348630609,1736691032951,-150.0,9.913e-05,2]
[348630611,1736691032960,-150.0,9.915e-05,2]
[348630613,1736691032970,-150.0,9.916e-05,2]
[348630615,1736691032979,-150.0,9.916e-05,2]
[348630617,1736691032989,-150.0,9.93e-05,2]
[348630619,1736691032998,-342.86,9.942e-05,2]
[348630621,1736691033007,-150.0,9.943e-05,2]
[348630623,1736691033017,-150.0,9.949e-05,2]
[348630625,1736691033026,-150.0,9.954e-05,2]
[348630627,1736691033036,-150.0,9.958e-05,2]
[348630629,1736691033045,-1000.0,9.962e-05,2]
[348630631,1736691033055,-1381.66,9.968e-05,2]
[348630633,1736691033065,-1042.82,9.968e-05,2]
[348630635,1736691033075,-985.26,9.968e-05,2]
[348630637,1736691033084,-500.0,9.968e-05,2]
[348630639,1736691033094,-2194.87407613,9.968e-05,2]
[348630643,1736691033121,-299.12592387,9.968e-05,2]
[348630645,1736691033131,-700.86607613,9.968e-05,2]
[348630647,1736691033142,-1133.20392387,9.968e-05,2]
[348630649,1736691033152,-3548.52,9.968e-05,2]
[348630651,1736691033162,-1415.15,9.968e-05,2]
[348630653,1736691033171,-500.0,9.968e-05,2]
[348630655,1736691033181,-1392.02,9.968e-05,2]
[348630657,1736691033191,-3305.98,9.968e-05,2]
[348630659,1736691033201,-1121.39,9.968e-05,2]
[348630661,1736691033211,-514.02,9.968e-05,2]
[348630663,1736691033220,-1881.48,9.968e-05,2]
[348630665,1736691033231,-500.0,9.968e-05,2]
[348630667,1736691033240,-500.0,9.968e-05,2]
[348630669,1736691033249,-674.67,9.968e-05,2]
[348630671,1736691033259,-941.22,9.968e-05,2]
[348630673,1736691033268,-2007.55,9.968e-05,2]
[348630697,1736691033487,-610.4192155,9.968e-05,2]
[348630699,1736691033498,-613.14,9.968e-05,2]
[348630701,1736691033507,-2654.11,9.968e-05,2]
[348630703,1736691033517,-762.21,9.969e-05,2]
[348630705,1736691033526,-500.0,9.969e-05,2]
[348630707,1736691033535,-500.0,9.969e-05,2]
[348630709,1736691033545,-500.0,9.969e-05,2]
[348630711,1736691033557,-500.0,9.969e-05,2]
[348630713,1736691033567,-681.88,9.969e-05,2]
[348630715,1736691033576,-500.0,9.969e-05,2]
[348630717,1736691033585,-500.0,9.969e-05,2]
[348630719,1736691033594,-500.0,9.969e-05,2]
[348630721,1736691033605,-607.63750142,9.969e-05,2]
[348630723,1736691033614,-500.0,9.969e-05,2]
[348630725,1736691033623,-500.0,9.969e-05,2]
[348630727,1736691033634,-789.76,9.969e-05,2]
[348630729,1736691033643,-937.54,9.969e-05,2]
[348630731,1736691033652,-500.0,9.969e-05,2]
[348630733,1736691033661,-500.0,9.969e-05,2]
[348630735,1736691033670,-500.0,9.969e-05,2]
[348630737,1736691033679,-976.47,9.969e-05,2]
[348630739,1736691033689,-500.0,9.969e-05,2]
[348630741,1736691033698,-500.0,9.969e-05,2]
[348630743,1736691033708,-500.0,9.969e-05,2]
[348630745,1736691033718,-500.0,9.969e-05,2]
[348630747,1736691033727,-500.0,9.969e-05,2]
[348630749,1736691033736,-500.0,9.969e-05,2]
[348630751,1736691033746,-500.0,9.969e-05,2]
[348630753,1736691033756,-500.0,9.969e-05,2]
[348630755,1736691033765,-500.0,9.969e-05,2]
[348630757,1736691033775,-500.0,9.969e-05,2]
[348630758,1736691033784,-500.0,9.969e-05,2]
[348630760,1736691033793,-524.46,9.969e-05,2]
[348630762,1736691033803,-707.37,9.969e-05,2]
[348630764,1736691033812,-538.31,9.969e-05,2]
[348630766,1736691033821,-500.0,9.969e-05,2]
[348630768,1736691033831,-500.0,9.969e-05,2]
[348630771,1736691033840,-500.0,9.969e-05,2]
[348630772,1736691033849,-500.0,9.969e-05,2]
[348630775,1736691033859,-500.0,9.969e-05,2]
[348630776,1736691033867,-500.0,9.969e-05,2]
[348630779,1736691033878,-500.0,9.969e-05,2]
[348630781,1736691033887,-500.0,9.969e-05,2]
[348630782,1736691033897,-500.0,9.969e-05,2]
[348630784,1736691033906,-500.0,9.969e-05,2]
[348630786,1736691033916,-1060.81,9.969e-05,2]
[348630788,1736691033926,-500.0,9.969e-05,2]
[348630790,1736691033936,-500.0,9.969e-05,2]
[348630792,1736691033945,-500.0,9.969e-05,2]
[348630794,1736691033955,-500.0,9.969e-05,2]
[348630796,1736691033965,-500.0,9.969e-05,2]
[348630798,1736691033975,-532.11,9.969e-05,2]
[348630800,1736691033985,-661.47,9.969e-05,2]
[348630802,1736691033994,-874.47,9.969e-05,2]
[348630804,1736691034004,-500.0,9.969e-05,2]
[348630806,1736691034013,-500.0,9.969e-05,2]
[348630808,1736691034023,-500.0,9.969e-05,2]